[Event "Hungarian Championship Women 2022"]
[Site "Budapest"]
[Date "2022.12.08"]
[Round "4.5"]
[White "Karacsonyi, Kata"]
[Black "Mihok-Juhasz, Barbara"]
[Result "0-1"]
[ECO "B40"]
[WhiteElo "2109"]
[BlackElo "2206"]
[Annotator "TA"]
[PlyCount "118"]
[EventDate "2022.12.03"]
[EventType "tourn"]
[EventCountry "HUN"]
[SourceTitle "playchess.com"]
[Source "ChessBase"]
[SourceQuality "1"]
[TimeControl "40/5400+30:1800+30"]

{[%evp 10,118,78,36,42,0,19,9,6,8,10,0,0,-30,-29,-24,39,47,31,41,72,6,12,-10,-24,-104,-96,-125,0,0,0,0,0,0,0,0,0,-6,-15,-6,0,0,0,-26,-31,-36,0,0,0,0,0,0,0,0,0,0,0,4,13,8,40,8,9,0,0,4,16,0,0,0,20,0,0,0,0,0,0,-3,0,0,0,-154,-28,-28,-17,-17,-20,-20,-16,-23,0,0,0,0,0,0,0,-34,-31,-174,-168,-736,-711,-29990,-29991,-29995,-29996,-29997,-29998,-29998,-29999]} 1. e4 {[%emt 0:00:33]} c5 {[%emt 0:00:58]} 2. Nf3 {[%emt 0:00:10]} e6 {[%emt 0:00:35]} 3. d4 {[%emt 0:00:09]} cxd4 {[%emt 0:00:06]} 4. Nxd4 {[%emt 0:00:05]} Nf6 {[%emt 0:00:13]} 5. Nc3 {[%emt 0:00:09]} Qb6 {[%emt 0:00:12]} 6. Nb3 {[%emt 0:01:39]} (6. Ndb5 {feels hotter.} a6 7. e5 Nd5 8. Nxd5 exd5 9. Be3) 6... Bb4 {[%emt 0:02:01] B40: Sicilian: 2...e6, Unusual lines.} 7. Bd3 {[%emt 0:18:02]} d6 {[%emt 0:00:29]} 8. O-O {[%emt 0:02:14]} Bxc3 {[%emt 0:00:30] The position is equal.} 9. bxc3 {[%emt 0:00:05]} e5 {[%emt 0:00:15]} 10. Rb1 {[%emt 0:07:05] [#]} O-O $146 {[%emt 0:36:14]} ({Predecessor:} 10... Be6 11. Ba3 O-O 12. Nd4 Qa5 13. Nxe6 fxe6 14. Bxd6 Rc8 15. Rb5 Qxa2 16. Bxe5 Nbd7 17. Bxf6 Nxf6 {½-½ (48) Karkalas,A (2235)-Narmontas,R Radviliskis 1995}) 11. Ba3 {[%emt 0:17:32][%cal Ob3d4]} Qc7 {[%emt 0:04:00]} 12. f4 {[%emt 0:03:20]} Ng4 {[%emt 0:17:01]} (12... Nbd7 $11) 13. Qd2 {[%emt 0:10:58]} Nc6 {[%emt 0:04:21]} 14. Be2 {[%emt 0:12:07]} (14. Bc4 {looks sharper.} Qb6+ 15. Nd4 Qa5 16. Nb5) 14... Rd8 {[%emt 0:00:44] [#]} 15. Bxg4 {[%emt 0:01:15]} ({Better is} 15. Rfd1 $1 $16) 15... Bxg4 $11 {[%emt 0:00:05]} 16. f5 {[%emt 0:03:57] h3 is the strong threat.} (16. h3 $5 {[%cal Rh3g4]} Bc8 17. Rfd1 $11) 16... f6 $1 {[%emt 0:00:10]} 17. Qd3 {[%emt 0:04:40]} (17. h3 $1 $11 Bh5 18. g4) 17... Bh5 $17 {[%emt 0:02:55]} 18. c4 {[%emt 0:02:13]} Rd7 {[%emt 0:04:36]} (18... Rac8 $17 19. Rfc1 Bf7) 19. c5 $1 $11 {[%emt 0:04:43]} dxc5 {[%emt 0:00:12]} 20. Qh3 {[%emt 0:00:05]} Be2 {[%emt 0:06:07]} 21. Rfe1 {[%emt 0:00:06]} (21. Nxc5 Bxf1 22. Rxb7 Qxb7 23. Nxb7 Rd1) 21... Ba6 {[%emt 0:00:32]} 22. Nxc5 {[%emt 0:00:09]} Rf7 {[%emt 0:03:24]} 23. Nxa6 {[%emt 0:05:52]} bxa6 {[%emt 0:00:05]} 24. Qd3 {[%emt 0:01:32]} Qa5 {[%emt 0:09:38]} 25. Qd6 {[%emt 0:00:14]} Qa4 {[%emt 0:01:51]} 26. c3 {[%emt 0:02:38]} (26. Qd5 {with more complications.} Qxa3 27. Rb7 Raf8 28. Rxf7 Rxf7 29. Qxc6 Qxa2 30. Rd1) 26... h6 {[%emt 0:01:17]} 27. Rb3 {[%emt 0:00:42]} Qc4 {[%emt 0:04:25]} (27... Kh7 $5 {[%cal Ra8d8]}) 28. Qd5 {[%emt 0:01:32]} Qxd5 {[%emt 0:00:17]} 29. exd5 {[%emt 0:00:01]} Na5 {[%emt 0:00:05]} 30. Rb4 {[%emt 0:00:13][%cal Bb3b4,Bb4a4,Ba4a6][%mdl 32] Black must now prevent c4.} Rc8 {[%emt 0:00:54] Prevents c4.} 31. Ra4 {[%emt 0:00:12]} Nc4 {[%emt 0:01:00]} 32. Rxa6 {[%emt 0:00:02]} Rd7 {[%emt 0:00:06]} 33. Bb4 {[%emt 0:01:49]} Nb6 {[%emt 0:00:55]} 34. d6 {[%emt 0:00:38]} Rc4 {[%emt 0:00:10]} 35. Ra5 {[%emt 0:00:46]} Kf7 {[%emt 0:00:39]} 36. Rd1 {[%emt 0:00:23]} Rf4 {[%emt 0:00:50]} 37. Rf1 {[%emt 0:00:37]} Rc4 {[%emt 0:00:28]} 38. Rd1 {[%emt 0:00:27]} Rf4 {[%emt 0:00:11]} 39. Rf1 {[%emt 0:00:08]} Rc4 {[%emt 0:00:22]} 40. g3 {[%emt 0:00:00]} g6 {[%emt 0:00:00]} 41. fxg6+ {[%emt 0:03:48]} Kxg6 {[%emt 0:02:49]} 42. Kg2 {[%emt 0:06:22]} h5 {[%emt 0:03:47]} 43. h3 {[%emt 0:02:28]} Re4 {[%emt 0:02:31]} 44. Kf3 {[%emt 0:00:51]} f5 {[%emt 0:02:00] Threatens to win with ...Nc4.} 45. g4 $2 {[%emt 0:05:46] [#]} (45. Bc5 $11) 45... hxg4+ {[%emt 0:00:23]} (45... fxg4+ $2 46. Kxe4 Nc4 47. Rd5 $18) (45... Nc4 $1 $17 46. gxf5+ Kxf5 47. Kg3+ Ke6) 46. hxg4 {[%emt 0:00:06]} Nc4 {[%emt 0:01:10]} 47. gxf5+ {[%emt 0:01:20]} Kxf5 {[%emt 0:00:10] The board is on fire.} 48. Kg3+ {[%emt 0:01:32]} Ke6 {[%emt 0:00:45][%mdl 1024] Black has compensation.} 49. Ra6 $1 {[%emt 0:03:10]} Ne3 {[%emt 0:17:54]} ({Don't play} 49... Nxd6 50. Rf3 $16) 50. Rf8 {[%emt 0:02:11] Strongly threatening Kf3.} Nd5 {[%emt 0:02:40]} 51. Kf3 {[%emt 0:01:34]} Rh4 {[%emt 0:00:51]} 52. Re8+ {[%emt 0:01:00]} Kf5 {[%emt 0:00:21]} (52... Kf7 {simplifies} 53. Rxe5 Nxb4 54. cxb4 Rxb4 55. Ke3 Rb6) 53. Ra5 {[%emt 0:00:40]} Rh3+ {[%emt 0:01:19]} 54. Kf2 {[%emt 0:03:26] White does not recover from this.} ({White should play} 54. Ke2 $15 Ke4 55. Bc5) 54... Ke4 $19 {[%emt 0:00:16] And now ...Rf7+ would win.} 55. Bc5 $2 {[%emt 0:01:39]} (55. Rxd5 Kxd5 56. Re7 Rxe7 57. dxe7) 55... Rf7+ {[%emt 0:00:47]} 56. Ke1 {[%emt 0:02:09]} Rh1+ {[%emt 0:01:13] Black mates.} ({Inferior is} 56... Nxc3 57. Bg1 Nd5 58. Ra4+ (58. Rxa7 Rxa7 59. Bxa7 Rh1+ 60. Kd2 Rh2+ 61. Kc1 Nf6 $11) 58... Kf5 59. Ra5 $11 (59. Rxa7 Rxa7 60. Bxa7 Rh1+ 61. Kd2 Rh2+ $11)) 57. Kd2 {[%emt 0:00:41]} Rh2+ {[%emt 0:00:03]} 58. Ke1 {[%emt 0:00:06]} Kd3 {[%emt 0:00:12]} 59. Rh8 {[%emt 0:01:36]} Re2+ {Weighted Error Value: White=0.37/Black=0.11 (very precise)} 0-1

[Event "Hungarian Championship Women 2022"]
[Site "Budapest"]
[Date "2022.12.09"]
[Round "5.1"]
[White "Mihok-Juhasz, Barbara"]
[Black "Terbe, Zsuzsanna"]
[Result "0-1"]
[ECO "B30"]
[WhiteElo "2206"]
[BlackElo "2114"]
[Annotator "TA"]
[PlyCount "94"]
[EventDate "2022.12.03"]
[EventType "tourn"]
[EventCountry "HUN"]
[SourceTitle "playchess.com"]
[Source "ChessBase"]
[SourceQuality "1"]
[TimeControl "40/5400+30:1800+30"]

{[%evp 9,94,20,29,30,29,8,46,41,68,25,37,32,42,41,64,61,61,70,62,40,84,78,84,78,82,83,112,102,139,139,135,115,127,118,124,84,59,10,68,65,114,133,331,351,337,258,218,156,146,87,90,0,12,0,3,0,0,20,13,0,0,0,0,0,0,0,0,-29982,-29983,-29986,-29987,-29987,-29988,-29988,-29989,-29989,-29989,-29990,-29988,-29991,-29992,-29992,-29993,-29993,-29993,-29993,-29994]} 1. e4 {[%emt 0:01:56]} c5 {[%emt 0:00:38]} 2. Nf3 {[%emt 0:00:26]} Nc6 {[%emt 0:00:05]} 3. Nc3 {[%emt 0:00:13]} e5 {[%emt 0:01:41]} 4. Bc4 {[%emt 0:00:14]} d6 {[%emt 0:03:47]} 5. d3 {[%emt 0:00:06]} h6 {[%emt 0:00:18]} 6. a3 {[%emt 0:00:34] B30: Sicilian: 2...Nc6 3 Bb5, lines without ...g6.} Nf6 {[%emt 0:00:25] [#]} 7. b4 $146 {[%emt 0:08:54]} ({Predecessor:} 7. Bd2 Nd4 8. h3 a6 9. Nxd4 exd4 10. Nd5 b5 11. Nxf6+ Qxf6 12. Bd5 Rb8 13. Ba5 Bd7 {1-0 (38) De La Ossa,M (1473)-Sepulveda Navarro,D Barranquilla 2022}) 7... b6 {[%emt 0:08:50]} 8. Nd5 {[%emt 0:07:40] White is slightly better.} Be6 {[%emt 0:02:56]} 9. Bb5 {[%emt 0:05:26]} Bd7 {[%emt 0:02:35]} 10. c4 {[%emt 0:24:20][%cal Bc2c4,Bc4d5][%mdl 32]} Nxd5 {[%emt 0:02:25]} 11. cxd5 {[%emt 0:01:01]} Nb8 {[%emt 0:05:20]} 12. Bxd7+ {[%emt 0:03:57]} Nxd7 {[%emt 0:00:20]} 13. O-O {[%emt 0:02:20]} Be7 {[%emt 0:04:33]} 14. bxc5 {[%emt 0:09:52]} bxc5 {[%emt 0:09:04]} 15. Nd2 {[%emt 0:03:19][%cal Bf3d2,Bd2c4,Bc4a5,Ba5c6][%mdl 32]} O-O {[%emt 0:05:51]} 16. Nc4 {[%emt 0:03:50]} Nb6 {[%emt 0:01:49]} 17. Na5 {[%emt 0:00:19]} Bg5 {[%emt 0:08:06]} (17... Nxd5 $2 18. Nc6 Nc3 19. Nxd8 $18) 18. Nc6 {[%emt 0:00:55]} Qd7 {[%emt 0:04:49]} 19. Bxg5 {[%emt 0:01:46]} hxg5 {[%emt 0:00:07]} 20. Qh5 {[%emt 0:00:04]} f6 {[%emt 0:00:54]} 21. Rfb1 {[%emt 0:04:59]} Nc8 {[%emt 0:01:09]} 22. Rb3 {[%emt 0:02:40]} Ne7 {[%emt 0:00:51]} 23. Nxe7+ {[%emt 0:00:36]} Qxe7 {[%emt 0:00:07]} 24. Rab1 {[%emt 0:00:01]} Qc7 {[%emt 0:03:18] [#]} (24... Rac8 $14 {is superior.}) 25. h4 $1 $16 {[%emt 0:07:15] Threatens to win with Rb7.} ({Reject} 25. Rb7 $6 Rab8 26. Rxb8 (26. Rxc7 $2 {leads to mate.} Rxb1+) 26... Rxb8 27. Rxb8+ Qxb8 $11) 25... Rf7 $2 {[%emt 0:04:50]} (25... Rab8 $16) 26. hxg5 $18 {[%emt 0:02:24]} fxg5 {[%emt 0:00:07]} 27. Qxg5 {[%emt 0:00:08]} Raf8 {[%emt 0:00:33]} 28. R1b2 {[%emt 0:00:20]} Qa5 {[%emt 0:01:21][%cal Of7f2]} 29. Qe3 {[%emt 0:03:13]} (29. Rb7 $142) 29... Qa4 $16 {[%emt 0:00:46][%cal Of7f2] [#]} 30. f3 {[%emt 0:00:17]} ({Better is} 30. Qh3 $1 $16) 30... Rf6 $11 {[%emt 0:02:22]} 31. Kf2 {[%emt 0:01:50]} Rg6 {[%emt 0:01:07]} 32. Rc3 {[%emt 0:00:50]} Qd1 {[%emt 0:02:03] ( -> ...Qh1)} 33. Rc1 {[%emt 0:03:33]} Qa4 {[%emt 0:00:49]} 34. Rcc2 {[%emt 0:00:44]} Qxa3 {[%emt 0:00:43]} 35. Ra2 {[%emt 0:00:04]} Qb3 {[%emt 0:00:30]} 36. Qd2 {[%emt 0:01:36] Black must now prevent Rcb2.} Qb6 {[%emt 0:01:31] ...c4+ is the strong threat.} 37. Rcb2 {[%emt 0:00:43]} Qd8 {[%emt 0:00:05] Hoping for ...Qh4+.} 38. Qa5 $2 {[%emt 0:00:34][%mdl 8192]} (38. Rxa7 $2 {loses.} Qh4+ 39. Kg1 Rxf3 $19) (38. Ke1 $11) 38... Qh4+ {[%emt 0:00:44] Black mates.} 39. Kg1 {[%emt 0:00:05]} Rxf3 {[%emt 0:03:00]} 40. Rf2 {[%emt 0:00:00]} Rh3 {[%emt 0:00:00][%csl Gh4][%cal Rh3h1]} 41. Kf1 {[%emt 0:00:50]} Re3 {[%emt 0:14:12][%cal Rh4h1]} 42. Kg1 {[%emt 0:02:03]} Rh6 {[%emt 0:01:14][%csl Gh6][%cal Rh4h1]} 43. Rf1 {[%emt 0:03:55]} Rxd3 {[%emt 0:15:46]} 44. Raa1 {[%emt 0:01:35]} Rg3 {[%emt 0:06:34]} 45. Ra3 {[%emt 0:05:34]} Qh2+ {[%emt 0:03:13]} 46. Kf2 {[%emt 0:00:06]} Qxg2+ {[%emt 0:00:27]} 47. Ke1 {[%emt 0:00:06]} Qxe4+ {[%emt 0:00:09] Black used his chance.   Weighted Error Value: White=0.27 (precise) /Black=0.12 (very precise)} 0-1

[Event "Hungarian Championship Women 2022"]
[Site "Budapest"]
[Date "2022.12.09"]
[Round "5.2"]
[White "Szente Varga, Fruzsina"]
[Black "Karacsonyi, Kata"]
[Result "0-1"]
[ECO "B24"]
[WhiteElo "2075"]
[BlackElo "2109"]
[Annotator "TA"]
[PlyCount "68"]
[EventDate "2022.12.03"]
[EventType "tourn"]
[EventCountry "HUN"]
[SourceTitle "playchess.com"]
[Source "ChessBase"]
[SourceQuality "1"]
[TimeControl "40/5400+30:1800+30"]

{[%evp 9,68,14,23,0,0,-10,0,-4,0,0,0,-15,43,45,134,67,69,68,138,57,60,73,47,8,31,0,13,-347,-344,-479,-465,-539,-537,-612,-604,-592,-512,-516,-512,-474,-377,-470,-393,-354,-290,-291,-272,-286,-239,-471,-119,-110,0,-226,-233,-2092,-2012,-29990,-29991,-29991,-964]} 1. e4 {[%emt 0:00:33]} c5 {[%emt 0:00:37]} 2. Nc3 {[%emt 0:00:08]} Nc6 {[%emt 0:00:06]} 3. Bb5 {[%emt 0:00:09]} e6 {[%emt 0:02:25]} 4. Bxc6 {[%emt 0:05:31]} bxc6 {[%emt 0:00:10]} 5. d3 {[%emt 0:00:30]} d5 {[%emt 0:01:41]} 6. f4 {[%emt 0:04:45] B23: Closed Sicilian: Lines without g3.} Ba6 {[%emt 0:12:41]} 7. Nge2 {[%emt 0:21:31] [#]} Qh4+ $146 {[%emt 0:21:47]} ({Predecessor:} 7... c4 8. O-O Nf6 9. Be3 Be7 10. Nd4 Rc8 11. Nf3 Qc7 12. b3 cxd3 13. cxd3 O-O {0-1 (52) Ji,J (1094)-Naessvold,K (1949) Ostersund 2016}) 8. Ng3 {[%emt 0:01:17] The position is equal.} c4 {[%emt 0:18:30]} 9. d4 {[%emt 0:07:00]} Nf6 {[%emt 0:14:28]} 10. Qf3 {[%emt 0:03:16]} c5 {[%emt 0:07:02]} (10... Bb4 $11) 11. Be3 $14 {[%emt 0:14:58][%cal Re4d5]} O-O-O {[%emt 0:04:15][%cal Ba8d8,Bd8d5,Bd5e5,Be5c5,Bc5c6,Bc6a6][%mdl 32]} (11... cxd4 $14 12. Bxd4 Be7) 12. exd5 {[%emt 0:11:48]} (12. dxc5 dxe4 13. Ncxe4 Bb7 $14) ({White should play} 12. O-O-O $16) 12... cxd4 {[%emt 0:04:28]} 13. Bxd4 {[%emt 0:00:18]} Bb7 {[%emt 0:00:45]} (13... Nxd5 $14 14. Nxd5 (14. Bxa7 Qxf4 15. Qxf4 Nxf4 $11) 14... Bb7) 14. O-O-O {[%emt 0:03:05]} (14. O-O $16) 14... Nxd5 {[%emt 0:00:35]} 15. Nxd5 {[%emt 0:12:25]} Rxd5 {[%emt 0:00:09]} 16. Qf1 {[%emt 0:04:12]} Kb8 {[%emt 0:01:58]} 17. Be5+ {[%emt 0:00:28]} (17. Qxc4 Qxf4+ 18. Kb1 e5 $17) 17... Ka8 {[%emt 0:00:11]} 18. Qxc4 $2 {[%emt 0:00:30][%mdl 8192]} (18. Qe2 $11) 18... Rxe5 $19 {[%emt 0:00:25][%mdl 64] Pin, Discovered Attack} 19. Rd7 {[%emt 0:03:17] Strongly threatening Qc7.} Rc5 {[%emt 0:02:40] Inhibits Qc7.} (19... Bxg2 $2 20. Qc8#) (19... Bc5 20. Rxb7 $1 Kxb7 21. Qb5+ Ka8 22. fxe5 (22. Qc6+ Kb8 $14) 22... Qg5+ 23. Kb1 Qxe5 24. Rd1 $14) 20. Qa4 {[%emt 0:01:02]} Be7 {[%emt 0:00:34]} (20... Bxg2 $2 21. Qxa7#) 21. Rhd1 {[%emt 0:00:13][%cal Od7b7]} Rhc8 {[%emt 0:00:58]} (21... Bxg2 $2 22. Qxa7#) (21... Qxh2 $2 22. Nf1 Qxg2 23. Rxe7 $17) 22. c3 {[%emt 0:02:51]} R5c6 {[%emt 0:02:45]} (22... Bxg2 $2 23. Qxa7#) 23. Kb1 {[%emt 0:00:41]} Ra6 {[%emt 0:02:12]} 24. Qd4 {[%emt 0:00:31]} Qf6 {[%emt 0:00:25]} (24... Qxh2 $2 {is the wrong capture.} 25. Qd3 Bh4 26. Ne4 Qxf4 27. Rxb7 Kxb7 28. g3 Bxg3 29. Nxg3 $19) 25. Qd3 {[%emt 0:00:34]} Bc5 {[%emt 0:00:36]} 26. Ne4 {[%emt 0:01:09]} Qf5 {[%emt 0:00:16]} 27. Nxc5 {[%emt 0:00:27]} Qxc5 {[%emt 0:00:25]} (27... Rxc5 $2 {too greedy.} 28. Qxf5 exf5 29. Rxf7 $19) 28. Rxf7 {[%emt 0:00:21]} Rb6 {[%emt 0:00:44]} 29. Rxg7 $2 {[%emt 0:00:35]} (29. Qd4 Qa5 30. c4) 29... Qf2 $2 {[%emt 0:00:37]} ({And not} 29... Qxc3 30. Qxc3 Rxc3 31. Rd8+ Rc8 32. Rxc8+ Bxc8 33. Rxh7 $15) (29... Qa3 $19 {[%csl Gb6][%cal Ra3b2] is more deadly.} 30. b3 Bd5) 30. Qd2 $17 {[%emt 0:00:38]} Qc5 {[%emt 0:00:28]} (30... Qh4 $17 31. g3 Qf6) 31. Ka1 $2 {[%emt 0:00:22] [#]} (31. Qd3 $1 $11) 31... Bd5 $1 $40 {[%emt 0:00:30][%mdl 128] Threatens to win with ...Ra6. Black is out for blood.} 32. Rxh7 $2 {[%emt 0:00:33]} (32. Rg5) 32... Ra6 {[%emt 0:00:18]} 33. a3 {[%emt 0:00:46]} Qc4 {[%emt 0:00:35][%csl Gd5][%cal Rc4a2]} 34. Kb1 {[%emt 0:00:14] [#]} Be4+ {[%emt 0:00:10] Weighted Error Value: White=0.87/Black=0.48} (34... Rxa3 $142 $3 {[%mdl 512]} 35. Re1 Qb3 36. Qxd5+ exd5 37. Rh8 Rxh8 38. Kc1 Ra1+ 39. Kd2 Qxb2+ 40. Ke3 Qxc3+ 41. Kf2 Rxe1 42. h3 Qe3#) 0-1

[Event "Hungarian Championship Women 2022"]
[Site "Budapest"]
[Date "2022.12.09"]
[Round "5.3"]
[White "Erdos, Boglarka"]
[Black "Demeter, Dorina"]
[Result "1/2-1/2"]
[ECO "C54"]
[WhiteElo "2180"]
[BlackElo "2149"]
[Annotator "TA"]
[PlyCount "101"]
[EventDate "2022.12.03"]
[EventType "tourn"]
[EventCountry "HUN"]
[SourceTitle "playchess.com"]
[Source "ChessBase"]
[SourceQuality "1"]
[TimeControl "40/5400+30:1800+30"]

{[%evp 17,101,0,0,0,23,15,33,30,36,31,65,34,27,52,33,0,0,-20,-12,-15,14,14,14,14,13,13,13,8,8,10,24,21,29,17,50,50,49,50,50,50,50,49,50,50,50,50,50,50,50,50,50,50,50,47,47,47,75,47,75,75,76,76,78,77,77,75,75,75,75,75,75,75,75,47,52,52,55,55,76,76,76,76,76,76,82,76]} 1. e4 {[%emt 0:00:34]} e5 {[%emt 0:00:44]} 2. Nf3 {[%emt 0:00:08]} Nc6 {[%emt 0:00:14]} 3. Bc4 {[%emt 0:00:06]} Bc5 {[%emt 0:00:16]} 4. c3 {[%emt 0:00:12]} Nf6 {[%emt 0:00:05]} 5. d4 {[%emt 0:00:45]} exd4 {[%emt 0:00:09]} 6. e5 {[%emt 0:00:25]} d5 {[%emt 0:01:14]} 7. Bb5 {[%emt 0:00:40]} Ne4 {[%emt 0:00:56]} 8. cxd4 {[%emt 0:00:47]} Bb6 {[%emt 0:00:35]} 9. Nc3 {[%emt 0:00:25]} O-O {[%emt 0:05:59]} 10. Be3 {[%emt 0:01:10] C54: Giuoco Piano: 4 c3 Nf6, main lines with 5 d4 and 5 d3.} Ba5 {[%emt 0:06:16]} 11. Rc1 {[%emt 0:01:56]} Bg4 {[%emt 0:01:20]} 12. O-O {[%emt 0:23:01] White is slightly better.} Bxc3 {[%emt 0:12:46]} 13. bxc3 {[%emt 0:00:14]} f6 {[%emt 0:00:20]} 14. exf6 {[%emt 0:06:24]} (14. Qc2 $5 {[%cal Rc3c4]}) 14... Qxf6 {[%emt 0:17:30][%cal Rg4f3]} 15. Be2 {[%emt 0:00:50]} Rae8 {[%emt 0:05:10]} 16. Qb3 {[%emt 0:21:06]} Qd6 {[%emt 0:03:10] [#]} 17. c4 $146 {[%emt 0:05:51]} ({Much weaker is} 17. Qxb7 {[#]} Nd2 $1 18. Nxd2 Bxe2 $15) ({Predecessor:} 17. Rfe1 Bxf3 18. Bxf3 Na5 19. Qb4 Qxb4 20. cxb4 Nc4 21. a4 a6 22. a5 c6 23. Be2 Ned6 24. Bd3 Re6 25. Bg5 Rfe8 26. Re4 Re5 27. Rxe5 Re6 {½-½ (27) Muzychuk,M (2539)-Salimova,N (2353) Warsaw 2021}) 17... Na5 {[%emt 0:17:44] Pair of Knights!} 18. Qb5 {[%emt 0:01:07]} Nxc4 {[%emt 0:09:09]} (18... Bxf3 $5 19. gxf3 Nxc4 20. Bxc4 (20. fxe4 $2 {loses.} Nxe3 21. fxe3 Qg6+ 22. Kh1 Qxe4+ $19) 20... c6 21. Bxd5+ (21. Qxb7 dxc4 22. Qa6 Rxf3 $17) 21... cxd5 $11) 19. Bxc4 {[%emt 0:00:46]} c6 {[%emt 0:06:22] [#]} 20. Bxd5+ $1 {[%emt 0:03:01]} Qxd5 {[%emt 0:02:25]} 21. Qxd5+ cxd5 22. Ne5 {[%emt 0:02:51]} Be2 {[%emt 0:01:02]} 23. Rfe1 {[%emt 0:00:12]} Ba6 {[%emt 0:01:24]} 24. f3 {[%emt 0:08:57]} Nd6 {[%emt 0:01:26]} 25. Bd2 {[%emt 0:03:21]} Nc4 {[%emt 0:04:19]} 26. Bb4 {[%emt 0:01:38]} Rf6 {[%emt 0:00:56]} 27. Nxc4 {[%emt 0:04:53]} Rxe1+ {[%emt 0:00:05]} 28. Rxe1 {[%emt 0:00:06] aiming for Re8+.} Bxc4 $14 {[%emt 0:00:11][%mdl 4096] Endgame KRB-KRB} 29. Re8+ {[%emt 0:01:26]} Kf7 {[%emt 0:00:01]} 30. Re7+ {[%emt 0:00:23]} Kg6 {[%emt 0:00:08]} 31. Rxb7 {[%emt 0:02:38]} Rf7 {[%emt 0:01:42]} 32. Rxf7 {[%emt 0:01:09]} Kxf7 {[%emt 0:00:02] KB-KB} 33. a3 {[%emt 0:00:19]} h5 {[%emt 0:00:19]} 34. Kf2 {[%emt 0:00:16]} Ke6 {[%emt 0:00:29]} 35. g4 {[%emt 0:02:03]} hxg4 {[%emt 0:00:31]} 36. fxg4 {[%emt 0:00:06]} g6 {[%emt 0:00:10]} 37. Kg3 {[%emt 0:00:21]} Kf7 {[%emt 0:00:28]} 38. Kf4 {[%emt 0:00:21]} a6 {[%emt 0:00:58]} 39. Ke5 {[%emt 0:00:56]} Ba2 {[%emt 0:00:20]} 40. h4 {[%emt 0:00:00]} Bc4 {[%emt 0:00:00]} 41. Kf4 {[%emt 0:07:27]} Kg7 {[%emt 0:04:31]} 42. Bd6 {[%emt 0:00:26]} Be2 {[%emt 0:01:00]} 43. Kg5 {[%emt 0:03:37]} Bd1 {[%emt 0:00:38]} 44. h5 {[%emt 0:00:20]} gxh5 {[%emt 0:00:05]} 45. Kxh5 {[%emt 0:00:02]} Kg8 {[%emt 0:01:26]} 46. Kg5 {[%emt 0:00:09]} Be2 {[%emt 0:00:09]} 47. Kf5 {[%emt 0:00:42]} Bd3+ {[%emt 0:01:30]} 48. Kf6 {[%emt 0:00:40] White is better.} Be2 {[%emt 0:00:38]} 49. g5 {[%emt 0:00:05][%cal Bg4g5,Bg5g6][%mdl 32]} Bc4 {[%emt 0:00:22]} 50. g6 {[%emt 0:00:52]} Ba2 {[%emt 0:01:47]} 51. Be5 {[%emt 0:00:20] Weighted Error Value: White=0.06 (flawless) /Black=0.07 (flawless)} 1/2-1/2